fUSD/lending_fUSD_20250530
["ID","MTS","AMOUNT","RATE_DAILY","PERIOD"]
[363130358,1748595032590,-241.38,0.000215,2]
[363130360,1748595032601,-241.38,0.000215,2]
[363130362,1748595032611,-300.0,0.00021561,2]
[363130364,1748595032620,-587.38219395,0.00021562,2]
[363130366,1748595032630,-1172.45071849,0.000216,7]
[363130369,1748595032649,-127.54928151,0.000216,7]
[363130372,1748595032660,-241.38,0.000216,2]
[363130375,1748595032671,-587.38219395,0.00021644,2]
[363130377,1748595032681,-167.27714452,0.00021699,2]
[363130379,1748595032690,-1700.0,0.000217,7]
[363130381,1748595032699,-16.88457304,0.00021726,2]
[363130385,1748595032711,-570.49762091,0.00021726,2]
[363130389,1748595032721,-152.0,0.00021733,3]
[363130391,1748595032730,-2100.0,0.000218,7]
[363130393,1748595032740,-207.4,0.00021804,2]
[363130395,1748595032749,-587.38219395,0.00021808,2]
[363130397,1748595032759,-1000.0,0.00021817,2]
[363130398,1748595032767,-500.0,0.00021817,2]
[363130399,1748595032777,-1618.0209,0.00021817,2]
[363130400,1748595032787,-6099.9351,0.00021817,2]
[363130401,1748595032796,-778.043,0.00021817,2]
[363130402,1748595032806,-223.27536014,0.00021817,2]
[363130403,1748595032815,-154.5310957,0.00021817,2]
[363130404,1748595032825,-1143.99310483,0.00021817,2]
[363130405,1748595032834,-257.14389424,0.00021817,2]
[363130406,1748595032844,-15951.17136318,0.00021817,2]
[363130407,1748595032853,-434.00401077,0.0002186,2]
[363130408,1748595032863,-200.0,0.00021866,2]
[363130409,1748595032873,-250.0,0.00021866,2]
[363130410,1748595032882,-15951.17136314,0.00021874,2]
[363130411,1748595032892,-1143.99310481,0.00021885,2]
[363130412,1748595032902,-587.38219395,0.0002189,2]
[363130413,1748595032911,-400.0,0.000219,7]
[363130414,1748595032921,-151.0,0.00021904,2]
[363130415,1748595032931,-151.0,0.00021904,2]
[363130416,1748595032941,-1115.157653,0.00021904,2]
[363130417,1748595032950,-228.97287844,0.00021904,2]
[363130418,1748595032960,-668.65185757,0.00021904,2]
[363130419,1748595032969,-300.0,0.00021904,2]
[363130420,1748595032979,-300.0,0.00021904,2]
[363130421,1748595032989,-300.0,0.00021904,2]
[363130422,1748595032998,-170.83,0.00021907,2]
[363130423,1748595033008,-219.32648639,0.00021916,2]
[363130424,1748595033018,-279.35154255,0.00021916,2]
[363130425,1748595033028,-500.0,0.00021916,2]
[363130426,1748595033038,-212.39046465,0.00021916,2]
[363130427,1748595033048,-500.0,0.00021916,2]
[363130428,1748595033058,-628.78462597,0.00021916,2]
[363130429,1748595033067,-384.13453849,0.00021916,2]
[363130430,1748595033077,-265.82747373,0.00021916,2]
[363130431,1748595033087,-395.88150439,0.00021916,2]
[363130432,1748595033098,-363.36764401,0.00021916,2]
[363130433,1748595033108,-500.0,0.00021916,2]
[363130434,1748595033118,-420.0,0.00021917,2]
[363130435,1748595033128,-420.0,0.00021917,2]
[363130436,1748595033138,-420.0,0.00021917,2]
[363130437,1748595033148,-420.0,0.00021917,2]
[363130438,1748595033158,-160.0,0.00021917,2]
[363130439,1748595033168,-586.06,0.00021917,2]
[363130440,1748595033178,-420.0,0.00021917,2]
[363130441,1748595033189,-420.0,0.00021917,2]
[363130442,1748595033199,-328.9,0.00021917,2]
[363130443,1748595033209,-514.1424552,0.00021917,2]
[363130444,1748595033219,-420.0,0.00021917,2]
[363130445,1748595033229,-393.20956039,0.00021917,2]
[363130446,1748595033239,-799.47,0.00021917,2]
[363130447,1748595033248,-520.62,0.00021917,2]
[363130448,1748595033258,-420.0,0.00021917,2]
[363130449,1748595033268,-508.19,0.00021917,2]
[363130450,1748595033277,-420.0,0.00021917,2]
[363130451,1748595033287,-420.0,0.00021917,2]
[363130452,1748595033297,-500.0,0.00021917,2]
[363130453,1748595033306,-160.0,0.00021917,2]
[363130454,1748595033316,-420.0,0.00021917,2]
[363130455,1748595033326,-420.0,0.00021917,2]
[363130456,1748595033335,-446.66,0.00021917,2]
[363130457,1748595033346,-420.0,0.00021917,2]
[363130458,1748595033357,-420.0,0.00021917,2]
[363130459,1748595033367,-420.0,0.00021917,2]
[363130460,1748595033377,-420.0,0.00021917,2]
[363130461,1748595033386,-690.7,0.00021917,2]
[363130462,1748595033396,-160.0,0.00021917,2]
[363130463,1748595033405,-420.0,0.00021917,2]
[363130464,1748595033414,-420.0,0.00021917,2]
[363130465,1748595033424,-160.0,0.00021917,2]
[363130466,1748595033433,-160.0,0.00021917,2]
[363130467,1748595033443,-412.0,0.00021917,2]
[363130468,1748595033454,-420.0,0.00021917,2]
[363130469,1748595033464,-160.0,0.00021917,2]
[363130470,1748595033473,-160.0,0.00021917,2]
[363130471,1748595033483,-160.0,0.00021917,2]
[363130472,1748595033496,-189.74073035,0.00021917,2]
[363130473,1748595033505,-420.0,0.00021917,2]
[363130474,1748595033514,-420.0,0.00021917,2]
[363130475,1748595033524,-420.0,0.00021917,2]
[363130476,1748595033534,-160.0,0.00021917,2]
[363130477,1748595033544,-160.0,0.00021917,2]
[363130478,1748595033554,-420.0,0.00021917,2]
[363130479,1748595033563,-160.0,0.00021917,2]
[363130480,1748595033573,-505.15987221,0.00021917,2]
[363130481,1748595033583,-163.42628217,0.00021917,2]
[363130482,1748595033593,-160.0,0.00021917,2]
[363130483,1748595033602,-420.0,0.00021917,2]
[363130484,1748595033611,-420.0,0.00021917,2]
[363130485,1748595033621,-445.98,0.00021917,2]
[363130486,1748595033631,-420.0,0.00021917,2]
[363130487,1748595033641,-160.0,0.00021917,2]
[363130488,1748595033650,-500.0,0.00021917,2]
[363130489,1748595033660,-160.0,0.00021917,2]
[363130490,1748595033669,-420.0,0.00021917,2]
[363130491,1748595033679,-160.0,0.00021917,2]
[363130492,1748595033689,-676.54,0.00021917,2]
[363130493,1748595033699,-420.0,0.00021917,2]
[363130494,1748595033708,-412.91932066,0.00021917,2]
[363130495,1748595033718,-420.0,0.00021917,2]
[363130496,1748595033728,-434.43,0.00021917,2]
[363130497,1748595033738,-420.0,0.00021917,2]
[363130498,1748595033748,-515.5,0.00021917,2]
[363130499,1748595033758,-434.89,0.00021917,2]
[363130500,1748595033767,-420.0,0.00021917,2]
[363130501,1748595033777,-420.0,0.00021917,2]
[363130502,1748595033786,-420.0,0.00021917,2]
[363130503,1748595033796,-523.9289141,0.00021917,2]
[363130504,1748595033807,-420.0,0.00021917,2]
[363130505,1748595033817,-1193.98,0.00021917,2]
[363130506,1748595033827,-431.49701578,0.00021917,2]
[363130507,1748595033836,-500.0,0.00021917,2]
[363130508,1748595033847,-628.44,0.00021917,2]
[363130509,1748595033857,-420.0,0.00021917,2]
[363130510,1748595033867,-420.0,0.00021917,2]
[363130511,1748595033876,-420.0,0.00021917,2]
[363130512,1748595033886,-482.9318789,0.00021917,2]
[363130513,1748595033897,-500.0,0.00021917,2]
[363130514,1748595033908,-420.0,0.00021917,2]
[363130515,1748595033917,-420.0,0.00021917,2]
[363130516,1748595033927,-420.0,0.00021917,2]
[363130517,1748595033937,-420.0,0.00021917,2]
[363130518,1748595033947,-420.0,0.00021917,2]
[363130519,1748595033957,-420.0,0.00021917,2]
[363130520,1748595033967,-420.0,0.00021917,2]
[363130521,1748595033977,-420.0,0.00021917,2]
[363130522,1748595033986,-420.0,0.00021917,2]
[363130523,1748595033998,-464.9,0.00021917,2]
[363130524,1748595034009,-500.0,0.00021917,2]
[363130525,1748595034019,-420.0,0.00021917,2]
[363130526,1748595034029,-420.0,0.00021917,2]
[363130527,1748595034038,-420.0,0.00021917,2]
[363130528,1748595034048,-420.0,0.00021917,2]
[363130529,1748595034058,-420.0,0.00021917,2]
[363130530,1748595034068,-456.84,0.00021917,2]
[363130531,1748595034078,-420.0,0.00021917,2]
[363130532,1748595034087,-420.0,0.00021917,2]
[363130533,1748595034099,-500.0,0.00021917,2]
[363130534,1748595034109,-160.0,0.00021917,2]
[363130535,1748595034119,-420.0,0.00021917,2]
[363130536,1748595034128,-420.0,0.00021917,2]
[363130537,1748595034138,-523.5,0.00021917,2]
[363130538,1748595034148,-420.0,0.00021917,2]
[363130539,1748595034158,-522.7,0.00021917,2]
[363130540,1748595034167,-424.72611851,0.00021917,2]
[363130541,1748595034177,-420.0,0.00021917,2]
[363130542,1748595034187,-586.95,0.00021917,2]
[363130543,1748595034197,-420.0,0.00021917,2]
[363130544,1748595034207,-426.83256011,0.00021917,2]
[363130545,1748595034216,-420.0,0.00021917,2]
[363130546,1748595034226,-420.0,0.00021917,2]
[363130547,1748595034235,-420.0,0.00021917,2]
[363130548,1748595034244,-420.0,0.00021917,2]
[363130549,1748595034254,-598.37,0.00021917,2]
[363130550,1748595034264,-420.0,0.00021917,2]
[363130551,1748595034274,-420.0,0.00021917,2]
[363130552,1748595034283,-420.0,0.00021917,2]
[363130553,1748595034293,-420.0,0.00021917,2]
[363130554,1748595034303,-420.0,0.00021917,2]
[363130555,1748595034313,-420.0,0.00021917,2]
[363130556,1748595034323,-420.0,0.00021917,2]
[363130557,1748595034332,-420.0,0.00021917,2]
[363130558,1748595034344,-436.16,0.00021917,2]
[363130559,1748595034353,-540.36,0.00021917,2]
[363130560,1748595034363,-420.0,0.00021917,2]
[363130561,1748595034374,-500.0,0.00021917,2]
[363130562,1748595034383,-500.0,0.00021917,2]
[363130563,1748595034393,-254.21691377,0.00021917,2]
[363130564,1748595034915,-253.38945835,0.00021917,2]
[363130565,1748595034925,-420.0,0.00021917,2]
[363130566,1748595034934,-425.4057877,0.00021917,2]
[363130567,1748595034943,-500.0,0.00021917,2]
[363130568,1748595034952,-420.0,0.00021917,2]
[363130569,1748595034962,-500.0,0.00021917,2]
[363130570,1748595034971,-421.73333637,0.00021917,2]
[363130571,1748595034981,-500.0,0.00021917,2]
[363130572,1748595034990,-420.0,0.00021917,2]
[363130573,1748595035000,-420.0,0.00021917,2]
[363130574,1748595035009,-221.7,0.00021917,2]
[363130575,1748595035019,-500.0,0.00021917,2]
[363130576,1748595035029,-164.05034542,0.00021917,2]
[363130577,1748595035038,-420.0,0.00021917,2]
[363130578,1748595035047,-425.39478198,0.00021917,2]
[363130579,1748595035057,-551.07,0.00021917,2]
[363130580,1748595035066,-420.0,0.00021917,2]
[363130581,1748595035075,-800.23,0.00021917,2]
[363130582,1748595035085,-554.91,0.00021917,2]
[363130583,1748595035095,-420.0,0.00021917,2]
[363130584,1748595035104,-420.0,0.00021917,2]
[363130585,1748595035113,-500.0,0.00021917,2]
[363130586,1748595035123,-420.0,0.00021917,2]
[363130587,1748595035132,-420.0,0.00021917,2]
[363130588,1748595035141,-420.0,0.00021917,2]
[363130589,1748595035150,-417.81162617,0.00021917,2]
[363130590,1748595035163,-112.940464,0.00021917,2]
[363130591,1748595035172,-220.8889226,0.00021917,2]
[363130592,1748595035183,-515.6910774,0.00021917,2]
[363130593,1748595035192,-570.88,0.00021917,2]
[363130594,1748595035202,-500.0,0.00021917,2]
[363130595,1748595035211,-420.0,0.00021917,2]
[363130596,1748595035221,-420.0,0.00021917,2]
[363130597,1748595035230,-420.0,0.00021917,2]
[363130598,1748595035239,-557.73,0.00021917,2]
[363130599,1748595035248,-420.0,0.00021917,2]
[363130600,1748595035258,-625.69892261,0.00021917,2]
[363130601,1748595035270,-422.27161926,0.00021917,2]
[363130602,1748595035282,-372.51000098,0.00021917,2]
[363130603,1748595035293,-193.92945715,0.00021917,2]
[363130604,1748595035303,-420.0,0.00021917,2]
[363130605,1748595035312,-352.60058128,0.00021917,2]
[363130606,1748595035325,-147.39941872,0.00021917,2]
[363130607,1748595035335,-356.69058128,0.00021917,2]
[363130608,1748595035347,-63.30941872,0.00021917,2]
[363130609,1748595035356,-420.0,0.00021917,2]
[363130610,1748595035365,-500.0,0.00021917,2]
[363130611,1748595035374,-416.62248485,0.00021917,2]
[363130612,1748595035386,-175.14751515,0.00021917,2]
[363130613,1748595035395,-154.61635136,0.00021917,2]
[363130614,1748595035424,-469.820004,0.00021917,2]
[363130615,1748595035435,-85.96364464,0.00021917,2]
[363130616,1748595035444,-500.0,0.00021917,2]
[363130617,1748595035453,-420.0,0.00021917,2]
[363130618,1748595035462,-85.69194152,0.00021917,2]
[363130619,1748595035481,-431.71,0.00021907,2]
[363130620,1748595035493,-334.30805848,0.00021917,2]
[363130621,1748595035504,-501.13905601,0.00021917,2]
[363130622,1748595035513,-618.96,0.00021917,2]
[363130623,1748595035522,-420.0,0.00021917,2]
[363130624,1748595035532,-842.78,0.00021917,2]
[363130625,1748595035541,-502.89248781,0.00021917,2]
[363130626,1748595035551,-420.0,0.00021917,2]
[363130627,1748595035560,-1143.2,0.00021917,2]
[363130628,1748595035569,-500.0,0.00021917,2]
[363130629,1748595035580,-420.0,0.00021917,2]
[363130630,1748595035589,-420.0,0.00021917,2]
[363130631,1748595035600,-420.0,0.00021917,2]
[363130632,1748595035609,-420.0,0.00021917,2]
[363130633,1748595035619,-420.0,0.00021917,2]
[363130634,1748595035628,-1032.45,0.00021917,2]
[363130635,1748595035637,-420.0,0.00021917,2]
[363130636,1748595035646,-872.27,0.00021917,2]
[363130637,1748595035655,-502.75890597,0.00021917,2]
[363130638,1748595035664,-471.7,0.00021917,2]
[363130639,1748595035672,-1339.52,0.00021917,2]
[363130640,1748595035681,-420.0,0.00021917,2]
[363130641,1748595035690,-1685.74,0.00021917,2]
[363130642,1748595035699,-502.77152193,0.00021917,2]
[363130643,1748595035708,-420.0,0.00021917,2]
[363130644,1748595035717,-420.0,0.00021917,2]
[363130645,1748595035726,-740.74,0.00021917,2]
[363130646,1748595035735,-500.0,0.00021917,2]
[363130647,1748595035744,-420.0,0.00021917,2]
[363130648,1748595035753,-501.90838941,0.00021917,2]
[363130649,1748595035762,-503.04124263,0.00021917,2]
[363130650,1748595035771,-531.68,0.00021917,2]
[363130651,1748595035780,-469.8,0.00021917,2]
[363130652,1748595035789,-420.0,0.00021917,2]
[363130653,1748595035800,-848.69,0.00021917,2]
[363130654,1748595035810,-420.0,0.00021917,2]
[363130655,1748595035820,-420.0,0.00021917,2]
[363130656,1748595035829,-1081.79,0.00021917,2]
[363130657,1748595035839,-1626.93,0.00021917,2]
[363130658,1748595036105,-420.0,0.00021917,2]
[363130659,1748595036115,-1415.9,0.00021917,2]
[363130660,1748595036126,-420.0,0.00021917,2]
[363130661,1748595036136,-1143.6,0.00021917,2]
[363130662,1748595036146,-420.0,0.00021917,2]
[363130663,1748595036155,-420.0,0.00021917,2]
[363130664,1748595036165,-1615.91,0.00021917,2]
[363130665,1748595036174,-917.29,0.00021917,2]
[363130666,1748595036183,-420.0,0.00021917,2]
[363130667,1748595036193,-420.0,0.00021917,2]
[363130668,1748595036203,-420.0,0.00021917,2]
[363130669,1748595036213,-420.0,0.00021917,2]
[363130670,1748595036224,-420.0,0.00021917,2]
[363130671,1748595036233,-1839.83,0.00021917,2]
[363130672,1748595036244,-420.0,0.00021917,2]
[363130673,1748595036254,-420.0,0.00021917,2]
[363130674,1748595036264,-515.83,0.00021917,2]
[363130675,1748595036274,-667.45,0.00021917,2]
[363130676,1748595036284,-420.0,0.00021917,2]
[363130677,1748595036294,-420.0,0.00021917,2]
[363130678,1748595036302,-158.578473,0.00021917,2]
[363130679,1748595036312,-420.0,0.00021917,2]
[363130680,1748595036322,-420.0,0.00021917,2]
[363130681,1748595036332,-483.58629136,0.00021917,2]
[363130682,1748595036344,-420.0,0.00021917,2]
[363130683,1748595036355,-420.0,0.00021917,2]
[363130684,1748595036364,-420.0,0.00021917,2]
[363130685,1748595036373,-1980.22,0.00021917,2]
[363130686,1748595036383,-617.71,0.00021917,2]
[363130687,1748595036392,-1185.28,0.00021917,2]
[363130688,1748595036401,-420.0,0.00021917,2]
[363130689,1748595036410,-420.0,0.00021917,2]
[363130690,1748595036419,-420.0,0.00021917,2]
[363130691,1748595036429,-424.39540717,0.00021917,2]
[363130692,1748595036438,-420.0,0.00021917,2]
[363130693,1748595036447,-1601.11,0.00021917,2]
[363130694,1748595036457,-1118.03,0.00021917,2]
[363130695,1748595036466,-1570.87,0.00021917,2]
[363130696,1748595036475,-420.0,0.00021917,2]
[363130697,1748595036485,-420.0,0.00021917,2]
[363130698,1748595036500,-500.0,0.00021917,2]
[363130699,1748595036509,-420.0,0.00021917,2]
[363130700,1748595036519,-468.07,0.00021917,2]
[363130701,1748595036529,-420.0,0.00021917,2]
[363130702,1748595036540,-420.0,0.00021917,2]
[363130703,1748595036551,-420.0,0.00021917,2]
[363130704,1748595036562,-450.96,0.00021917,2]
[363130705,1748595036573,-1423.4,0.00021917,2]
[363130706,1748595036582,-644.63,0.00021917,2]
[363130707,1748595036591,-420.0,0.00021917,2]
[363130708,1748595036604,-762.5,0.00021917,2]
[363130709,1748595036614,-420.0,0.00021917,2]
[363130710,1748595036623,-548.42,0.00021917,2]
[363130711,1748595036633,-717.64,0.00021917,2]
[363130712,1748595036643,-765.25,0.00021917,2]
[363130713,1748595036652,-497.72,0.00021917,2]
[363130714,1748595036663,-420.0,0.00021917,2]
[363130715,1748595036672,-654.14,0.00021917,2]
[363130716,1748595036681,-420.0,0.00021917,2]
[363130717,1748595036690,-420.0,0.00021917,2]
[363130718,1748595036699,-420.0,0.00021917,2]
[363130719,1748595036709,-420.0,0.00021917,2]
[363130720,1748595036719,-420.0,0.00021917,2]
[363130721,1748595036728,-420.0,0.00021917,2]
[363130722,1748595036737,-420.0,0.00021917,2]
[363130723,1748595036747,-516.31259453,0.00021917,2]
[363130724,1748595036757,-1119.86,0.00021917,2]
[363130725,1748595036766,-420.0,0.00021917,2]
[363130726,1748595036775,-510.61984279,0.00021917,2]
[363130727,1748595036785,-951.56,0.00021917,2]
[363130728,1748595036795,-1258.39,0.00021917,2]
[363130729,1748595036805,-420.0,0.00021917,2]
[363130730,1748595036816,-500.0,0.00021917,2]
[363130731,1748595036825,-826.81,0.00021917,2]
[363130732,1748595036835,-420.0,0.00021917,2]
[363130733,1748595036846,-420.0,0.00021917,2]
[363130734,1748595036856,-765.69,0.00021917,2]
[363130735,1748595036865,-629.43,0.00021917,2]
[363130736,1748595036875,-420.0,0.00021917,2]
[363130737,1748595036885,-420.0,0.00021917,2]
[363130738,1748595036895,-729.08,0.00021917,2]
[363130739,1748595036905,-856.89,0.00021917,2]
[363130740,1748595036914,-1655.796379,0.00021917,2]
[363130741,1748595036923,-153.986009,0.00021917,2]
[363130742,1748595036933,-1428.318643,0.00021917,2]
[363130743,1748595036943,-420.0,0.00021917,2]
[363130744,1748595036953,-800.9,0.00021917,2]
[363130745,1748595036963,-420.0,0.00021917,2]
[363130746,1748595036973,-2521.48,0.00021917,2]
[363130747,1748595036984,-500.0,0.00021917,2]
[363130748,1748595036994,-624.3,0.00021917,2]
[363130749,1748595037004,-420.0,0.00021917,2]
[363130750,1748595037013,-676.43,0.00021917,2]
[363130751,1748595037023,-455.36,0.00021917,2]
[363130752,1748595037033,-420.0,0.00021917,2]
[363130753,1748595037043,-1501.32,0.00021917,2]
[363130754,1748595037053,-1979.7,0.00021917,2]
[363130755,1748595037062,-420.0,0.00021917,2]
[363130756,1748595037071,-420.0,0.00021917,2]
[363130757,1748595037081,-500.0,0.00021917,2]
[363130758,1748595037091,-784.13,0.00021917,2]
[363130759,1748595037102,-575.87,0.00021917,2]
[363130760,1748595037112,-1973.1,0.00021917,2]
[363130761,1748595037121,-502.71052606,0.00021917,2]
[363130762,1748595037131,-706.99,0.00021917,2]
[363130763,1748595037141,-1055.66,0.00021917,2]
[363130764,1748595037150,-420.0,0.00021917,2]
[363130765,1748595037159,-420.0,0.00021917,2]
[363130766,1748595037168,-507.61917094,0.00021917,2]
[363130767,1748595037178,-546.17,0.00021917,2]
[363130768,1748595037188,-420.0,0.00021917,2]
[363130769,1748595037197,-491.71,0.00021917,2]
[363130770,1748595037207,-567.72,0.00021917,2]
[363130771,1748595037216,-501.93121484,0.00021917,2]
[363130772,1748595037225,-595.78,0.00021917,2]
[363130773,1748595037235,-631.25,0.00021917,2]
[363130774,1748595037247,-420.0,0.00021917,2]
[363130775,1748595037257,-1248.77,0.00021917,2]
[363130776,1748595037266,-964.56,0.00021917,2]
[363130777,1748595037275,-238.75968,0.00021917,2]
[363130778,1748595037285,-420.0,0.00021917,2]
[363130779,1748595037295,-506.77983329,0.00021917,2]
[363130780,1748595037304,-420.0,0.00021917,2]
[363130781,1748595037314,-420.0,0.00021917,2]
[363130782,1748595037323,-502.61,0.00021917,2]
[363130783,1748595037333,-500.0,0.00021917,2]
[363130784,1748595037343,-420.0,0.00021917,2]
[363130785,1748595037353,-653.49,0.00021917,2]
[363130786,1748595037363,-912.53,0.00021917,2]
[363130787,1748595037372,-526.08178114,0.00021917,2]
[363130788,1748595037382,-500.0,0.00021917,2]
[363130789,1748595037391,-420.0,0.00021917,2]
[363130790,1748595037401,-497.79,0.00021917,2]
[363130791,1748595037410,-646.81,0.00021917,2]
[363130792,1748595037420,-2028.31,0.00021917,2]
[363130793,1748595037429,-1287.15,0.00021917,2]
[363130794,1748595037439,-881.82,0.00021917,2]
[363130795,1748595037448,-420.0,0.00021917,2]
[363130796,1748595037457,-500.0,0.00021917,2]
[363130797,1748595037467,-500.0,0.00021917,2]
[363130798,1748595037476,-500.0,0.00021917,2]
[363130799,1748595037485,-178.44810261,0.00021917,2]
[363130800,1748595037498,-502.07607281,0.00021917,2]
[363130801,1748595037507,-420.0,0.00021917,2]
[363130802,1748595037517,-1438.11,0.00021917,2]
[363130803,1748595037527,-847.99,0.00021917,2]
[363130804,1748595037539,-500.0,0.00021917,2]
[363130805,1748595037550,-500.0,0.00021917,2]
[363130806,1748595037561,-420.0,0.00021917,2]
[363130807,1748595037571,-936.66,0.00021917,2]
[363130808,1748595037581,-420.0,0.00021917,2]
[363130809,1748595037590,-566.12,0.00021917,2]
[363130810,1748595037602,-420.0,0.00021917,2]
[363130811,1748595037611,-524.49194438,0.00021917,2]
[363130812,1748595037620,-420.0,0.00021917,2]
[363130813,1748595037629,-832.73,0.00021917,2]
[363130814,1748595037639,-420.0,0.00021917,2]
[363130815,1748595037648,-647.61,0.00021917,2]
[363130816,1748595037659,-681.6,0.00021917,2]
[363130817,1748595037668,-420.0,0.00021917,2]
[363130818,1748595037677,-420.0,0.00021917,2]
[363130819,1748595037687,-601.12,0.00021917,2]
[363130820,1748595037696,-420.0,0.00021917,2]
[363130821,1748595037706,-420.0,0.00021917,2]
[363130822,1748595037715,-977.69,0.00021917,2]
[363130823,1748595037724,-719.65,0.00021917,2]
[363130825,1748595037734,-422.33120032,0.00021917,2]
[363130827,1748595037744,-420.0,0.00021917,2]
[363130828,1748595037753,-420.0,0.00021917,2]
[363130830,1748595037762,-1108.82,0.00021917,2]
[363130832,1748595037771,-732.79,0.00021917,2]
[363130834,1748595037781,-504.66539613,0.00021917,2]
[363130835,1748595037791,-500.0,0.00021917,2]
[363130836,1748595037800,-500.0,0.00021917,2]
[363130837,1748595037809,-500.0,0.00021917,2]
[363130838,1748595037819,-473.65,0.00021917,2]
[363130839,1748595037828,-873.52,0.00021917,2]
[363130841,1748595037838,-420.0,0.00021917,2]
[363130843,1748595037849,-420.0,0.00021917,2]
[363130845,1748595037859,-420.0,0.00021917,2]
[363130846,1748595037868,-420.0,0.00021917,2]
[363130847,1748595037878,-420.0,0.00021917,2]
[363130848,1748595037887,-420.0,0.00021917,2]
[363130849,1748595037896,-505.28857616,0.00021917,2]
[363130850,1748595037906,-1343.03,0.00021917,2]
[363130851,1748595037916,-420.0,0.00021917,2]
[363130852,1748595037926,-420.0,0.00021917,2]
[363130853,1748595037936,-420.0,0.00021917,2]
[363130854,1748595037947,-759.29,0.00021917,2]
[363130855,1748595037956,-420.0,0.00021917,2]
[363130856,1748595037966,-420.0,0.00021917,2]
[363130857,1748595037976,-420.0,0.00021917,2]
[363130858,1748595037985,-420.0,0.00021917,2]
[363130859,1748595037994,-420.0,0.00021917,2]
[363130860,1748595038004,-420.0,0.00021917,2]
[363130861,1748595038013,-550.98,0.00021917,2]
[363130862,1748595038023,-420.0,0.00021917,2]
[363130863,1748595038033,-1374.21,0.00021917,2]
[363130864,1748595038043,-533.26195321,0.00021917,2]
[363130865,1748595038052,-917.27,0.00021917,2]
[363130866,1748595038062,-1575.93,0.00021917,2]
[363130867,1748595038072,-556.09,0.00021917,2]
[363130868,1748595038082,-420.0,0.00021917,2]
[363130869,1748595038092,-420.0,0.00021917,2]
[363130870,1748595038106,-464.8,0.00021917,2]
[363130871,1748595038115,-568.6,0.00021917,2]
[363130872,1748595038125,-980.33,0.00021917,2]
[363130873,1748595038134,-420.0,0.00021917,2]
[363130874,1748595038144,-438.38,0.00021917,2]
[363130875,1748595038154,-420.0,0.00021917,2]
[363130876,1748595038164,-968.17,0.00021917,2]
[363130877,1748595038173,-471.82280488,0.00021917,2]
[363130878,1748595038183,-420.0,0.00021917,2]
[363130879,1748595038193,-420.0,0.00021917,2]
[363130880,1748595038203,-1602.91,0.00021917,2]
[363130881,1748595038213,-420.0,0.00021917,2]
[363130882,1748595038223,-420.0,0.00021917,2]
[363130883,1748595038232,-532.86,0.00021917,2]
[363130884,1748595038242,-1468.8,0.00021917,2]
[363130885,1748595038252,-420.0,0.00021917,2]
[363130886,1748595038261,-2410.04,0.00021917,2]
[363130887,1748595038271,-629.25,0.00021917,2]
[363130888,1748595038281,-420.0,0.00021917,2]